[Event "87th Tata Steel Masters 2025"]
[White "Gukesh,Dommaraju"]
[Black "Erigaisi,Arjun Kumar"]
[Site "Wijk aan Zee"]
[Round "13.5"]
[Annotator "TA"]
[Result "0-1"]
[Date "2025.02.02"]
[WhiteElo "2777"]
[BlackElo "2801"]
[PlyCount "62"]
[TimeControl "60"]

{[%evp 11,62,-6,14,0,0,0,0,-10,-8,-21,-12,-22,0,0,21,29,27,0,0,0,0,-4,-10,-19,-2,-33,-54,-59,0,-150,-155,-156,-155,-239,-245,-370,-373,-392,-379,-387,-384,-379,-376,-468,-456,-885,-856,-5606,-5513,-29985,-29985,-29989,-29990]} 1. e4 {[%emt 0:0:5]} e5 {[%emt 0:0:8]} 2. Nf3 {[%emt 0:0:7]} Nf6 {[%emt 0:0:6]} 3. Nxe5 {[%emt 0:1:41]} d6 {[%emt 0:0:7]} 4. Nc4 {[%emt 0:0:13]} Nxe4 {[%emt 0:0:8]} 5. Qe2 {[%emt 0:0:4]} Qe7 {[%emt 0:0:50]} 6. Ne3 {[%emt 0:0:7]} Nf6 {[%emt 0:4:46]} 7. Nc3 {[%emt 0:5:30] C42: Petroff Defence: 3 Nxe5 and unusual White 3rd moves.} Be6 {[%emt 0:8:15] Wards off Ncd5} 8. g3 {[%emt 0:3:29]} Nc6 {[%emt 0:0:36]} 9. Bg2 {[%emt 0:0:7] The position is equal. Repels d5} Qd7 {[%emt 0:3:26]} 10. O-O {[%emt 0:0:42]} O-O-O {[%emt 0:4:23]} 11. b4 {[%emt 0:0:5]} d5 {[%emt 0:12:57][%cal Yd5d4]} 12. b5 {[%emt 0:1:35]} Na5 $146 {[%emt 0:1:55]} (12... Nd4 13. Qd3 Nf5 14. Nxf5 Bxf5 15. Qd4 b6 16. d3 Bh3 17. Bg5 Be7 18. a4 Bxg2 19. Kxg2 {½-½ Copar,A (2519)-Helbich,J (2517) EU-chT11 fin email 2021} )13. d4 {[%emt 0:1:24]} Bh3 {[%emt 0:11:40]} 14. Bxh3 {[%emt 0:8:12]} (14. Nexd5 $2 Bxg2 15. Kxg2 Nxd5 $19 )Qxh3 {[%emt 0:0:0]} 15. Qf3 {[%emt 0:16:38][%cal Re3d5]} h5 {[%emt 0:10:37]} 16. Nexd5 {[%emt 0:5:29]} h4 {[%emt 0:9:34]} 17. Nxf6 {[%emt 0:10:17]} gxf6 {[%emt 0:7:48]} 18. Rd1 {[%emt 0:4:1][%cal Yf3g2]} hxg3 {[%emt 0:0:0]} 19. hxg3 {[%emt 0:4:8][%cal Yf3g2]} Nc4 $40 {[%emt 0:8:3][%mdl 128] White needs to defend precisely.} (19... Bb4 $15 20. Ne4 Qh2+ 21. Kf1 Qh3+ 22. Kg1 )20. Bf4 {[%emt 0:8:42] [#]} (20. Rb1 $1 $11 )Bh6 $1 $17 {[%emt 0:13:2]} 21. Bxh6 {[%emt 0:8:8]} Rxh6 {[%emt 0:5:20]} 22. Qg2 {[%emt 0:2:54]} (22. Rac1 $17 )Qh5 $19 {[%emt 0:8:17]} 23. Rab1 {[%emt 0:2:3]} (23. g4 $142 Qg5 24. d5 )Rdh8 {[%emt 0:7:15]} 24. Rb4 {[%emt 0:5:37]} Na3 {[%emt 0:6:23][%cal Yh5f5]} 25. b6 {[%emt 0:1:37]} cxb6 {[%emt 0:0:0][%cal Yh5f5] White must now prevent ...Qf5!.} (25... axb6 26. Ra4 Kb8 (26... Nxc2 27. Ra8+ Kd7 28. Rxh8 $11 )(26... Qh1+ 27. Qxh1 Rxh1+ 28. Kg2 $14 )27. Rxa3 $11 )26. Ra4 {[%emt 0:16:28]} Nb5 {[%emt 0:0:0]} (26... Nxc2 27. Rxa7 Qh1+ 28. Qxh1 Rxh1+ 29. Kg2 Ne1+ 30. Rxe1 R8h2+ 31. Kf3 Rxe1 32. Ra8+ Kd7 33. Rf8 $17 )27. Rd3 {[%emt 0:3:59]} Nxc3 {[%emt 0:0:45]} 28. Rxc3+ {[%emt 0:0:0] [#]} (28. Rxa7 $142 Nd5 29. Ra8+ Kc7 30. Rxh8 Rxh8 31. Qf3 Qxf3 32. Rxf3 )Kd8 $1 {[%emt 0:2:47]} ({Less strong is} 28... Kb8 29. g4 (29. Qf3 $2 {is a self mate.} Qxf3 30. Rxf3 Rh1+ 31. Kg2 R8h2# )Qh1+ 30. Qxh1 Rxh1+ 31. Kg2 R8h2+ 32. Kg3 Rh3+ 33. Kg2 Rxc3 34. Kxh1 $17 )29. f3 {[%emt 0:0:48]} Qb5 {[%emt 0:0:0] ( -> ...Re8)} 30. Rxa7 {[%emt 0:0:22] [#]} Rh1+ $1 {[%emt 0:0:0][%mdl 512]} 31. Kf2 {[%emt 0:0:4]} (31. Qxh1 Qb1+ )R8h2 {[%emt 0:0:0] Weighted Error Value: White=0.74/Black=0.05 (flawless)   Mistake:       	White=4     	Black=1      Inaccurate:     	White=3     	---        OK:         	White=6     	Black=12     Best:        	White=2     	Black=2      Strong:       	---       	Black=2} 0-1

[Event "87th Tata Steel Masters 2025"]
[White "Giri,Anish"]
[Black "Van Foreest,Jorden"]
[Site "Wijk aan Zee"]
[Round "13.6"]
[Annotator "TA"]
[Result "1/2-1/2"]
[Date "2025.02.02"]
[WhiteElo "2731"]
[BlackElo "2680"]
[PlyCount "120"]
[TimeControl "60"]

{[%evp 18,120,33,28,31,18,21,-32,-31,-45,0,-41,-39,-65,-66,-71,-45,-57,-52,-65,-47,-58,-18,-50,-16,-51,-57,-58,-59,-48,-50,-35,-41,-35,-44,-74,-71,-98,-97,-107,-101,-100,-55,-59,-70,-64,-70,-70,-66,-63,0,0,0,0,0,0,0,0,0,0,0,0,0,0,0,0,0,0,0,0,0,0,0,0,0,0,0,0,2,0,0,0,4,0,0,0,0,0,0,0,27,27,27,27,27,27,27,27,27,27,27,0,17,0,27]} 1. e4 {[%emt 0:0:10]} e5 {[%emt 0:0:6]} 2. Nf3 {[%emt 0:0:3]} Nc6 {[%emt 0:0:8]} 3. Bb5 {[%emt 0:0:4]} Nf6 {[%emt 0:0:11]} 4. O-O {[%emt 0:0:5]} Nxe4 {[%emt 0:0:8]} 5. d4 {[%emt 0:0:3]} Nd6 {[%emt 0:0:10]} 6. Bxc6 {[%emt 0:0:3]} dxc6 {[%emt 0:0:7]} 7. dxe5 {[%emt 0:0:2]} Nf5 {[%emt 0:0:11]} 8. Qxd8+ {[%emt 0:0:2]} Kxd8 {[%emt 0:0:7]} 9. Nc3 {[%emt 0:0:6]} Ne7 {[%emt 0:0:7]} 10. h3 {[%emt 0:2:28] Black is weak on the dark squares} Bd7 {[%emt 0:0:5] C67: Ruy Lopez: Berlin Defence: 4 0-0 Nxe4.} 11. Ne4 {[%emt 0:4:54]} h6 {[%emt 0:0:6]} 12. Re1 {[%emt 0:1:59]} (12. Nc5 $11 Bc8 13. Rd1+ Ke8 14. Nd3 )b6 $15 {[%emt 0:2:57] Black is slightly better.} 13. Bd2 $146 {[%emt 0:9:44]} (13. Bf4 Kc8 14. Rad1 c5 15. g4 Be6 16. Bg3 Kb7 17. Nc3 a5 18. a3 g5 19. Rd2 Bg7 20. Red1 Rae8 {½-½ Timman,J (2607)-Hansen,S (2553) Sigeman & Co 13th 2005 (7)} )Kc8 {[%emt 0:5:25]} 14. Rad1 {[%emt 0:0:34]} a5 {[%emt 0:9:30]} 15. Ng3 {[%emt 0:3:57]} c5 {[%emt 0:3:18]} 16. Nh5 {[%emt 0:0:49]} Nd5 {[%emt 0:14:1]} 17. a3 {[%emt 0:2:35][%cal Yd2a5]} Be6 $1 {[%emt 0:0:19]} 18. g4 {[%emt 0:7:52]} b5 {[%emt 0:0:58]} 19. Kg2 {[%emt 0:1:16]} Ra6 {[%emt 0:3:38]} 20. Kg3 {[%emt 0:2:34]} b4 {[%emt 0:7:2]} 21. Ra1 {[%emt 0:12:25]} a4 {[%emt 0:4:19]} 22. c3 {[%emt 0:3:55]} bxc3 {[%emt 0:8:40]} 23. Bxc3 {[%emt 0:0:0]} Nxc3 {[%emt 0:1:56]} 24. bxc3 {[%emt 0:0:0]} Rb6 {[%emt 0:7:54]} 25. Nf4 {[%emt 0:0:0]} Bb3 {[%emt 0:0:5]} 26. Nd2 {[%emt 0:0:0]} g5 {[%emt 0:1:50]} 27. Nh5 {[%emt 0:0:31]} Be7 {[%emt 0:1:38]} 28. Re3 {[%emt 0:9:14][%cal Ye1e3,Ye3f3,Yf3f7,Yf7e7][%mdl 32]} Rd8 {[%emt 0:0:28] Black has strong rooks and is better} 29. Nxb3 {[%emt 0:1:1]} Rxb3 {[%emt 0:7:42]} 30. Rf3 {[%emt 0:3:19]} c4 {[%emt 0:0:11]} 31. Rxf7 {[%emt 0:0:35][%csl Ya3,Yc3,Yf2] White has weak pawns} Rxa3 {[%emt 0:2:46][%csl Ya4] Black has a strong passed pawn} (31... Rxc3+ 32. Kg2 Bc5 (32... Bxa3 33. e6 $16 )(32... Rxa3 33. Rc1 $16 )33. e6 $18 )32. Rb1 {[%emt 0:7:27]} Rxc3+ {[%emt 0:1:7]} 33. Kg2 {[%emt 0:0:8]} Rb3 {[%emt 0:10:48]} (33... Bf8 $15 34. e6 a3 )34. Rc1 $1 $11 {[%emt 0:6:17]} a3 {[%emt 0:0:59]} 35. Rxe7 {[%emt 0:0:4]} c3 {[%emt 0:4:46] [#] White must now prevent ...a2.} (35... a2 $5 36. Ra1 $8 (36. Rxc4 $2 a1=Q $19 )Rd2 $11 )36. Ng7 $1 {[%emt 0:4:28]} a2 {[%emt 0:3:20]} 37. Ne6 $1 {[%emt 0:0:8][%csl Yc7,Yd8]} Rb1 {[%emt 0:1:18]} 38. Rxc7+ {[%emt 0:1:37]} (38. Rxc3 a1=Q 39. Rexc7+ (39. Rcxc7+ $2 Kb8 $19 )Kb8 40. Nxd8 Rg1+ 41. Kf3 (41. Kh2 $2 Rh1+ 42. Kg3 Qg1+ 43. Kf3 Rxh3+ 44. Ke4 Qe1+ 45. Kf5 Rxc3 $19 )Qd1+ 42. Ke4 Qxd8 $19 )Kb8 {[%emt 0:0:4]} 39. R7xc3 {[%emt 0:0:9]} (39. R1xc3 $2 {is the wrong capture.} a1=Q 40. Nxd8 Rg1+ 41. Kf3 (41. Kh2 $2 Rh1+ 42. Kg3 Qg1+ 43. Kf3 Rxh3+ 44. Ke4 Qe1+ 45. Kf5 Rxc3 $19 )Qd1+ 42. Ke4 Qxd8 $19 )a1=Q {[%emt 0:1:51]} 40. Rb3+ {[%emt 0:3:2]} Rxb3 {[%emt 0:0:8]} 41. Rxa1 {[%emt 0:50:2][%mdl 4096] Endgame KRR-KRN} Rd5 {[%emt 0:53:23]} 42. Nf8 {[%emt 0:10:25]} Rd8 {[%emt 0:2:55]} 43. Ne6 {[%emt 0:5:30]} Rd5 {[%emt 0:0:25]} 44. Rc1 {[%emt 0:0:0]} Rb6 {[%emt 0:0:0]} (44... Rxe5 45. Nd4 (45. Nc5 Rb7 $11 )Rb6 46. Nc6+ Rxc6 47. Rxc6 $18 )45. Nf8 {[%emt 0:0:0]} Rd8 {[%emt 0:0:0]} 46. Nh7 {[%emt 0:0:0]} Re6 {[%emt 0:0:0][%cal Ye6e7]} 47. Re1 {[%emt 0:0:0]} Rd4 {[%emt 0:0:0]} 48. Nf6 {[%emt 0:0:0]} Kc8 {[%emt 0:0:0]} 49. Re3 {[%emt 0:0:0]} Kd8 {[%emt 0:0:0]} 50. Kg3 {[%emt 0:0:0]} Ke7 {[%emt 0:0:0]} 51. Nh5 {[%emt 0:0:0]} Rd5 {[%emt 0:0:0]} 52. f4 {[%emt 0:0:0]} Kf7 {[%emt 0:0:0]} 53. Rf3 {[%emt 0:0:0]} gxf4+ {[%emt 0:0:0]} 54. Nxf4 {[%emt 0:0:0]} Rdxe5 {[%emt 0:0:0]} 55. Nxe6+ {[%emt 0:0:0]} Kxe6 {[%emt 0:0:0] KR-KR. White is a pawn up.} 56. Kh4 {[%emt 0:0:0]} (56. Rf8 $5 )Ke7 {[%emt 0:0:0] Prevents Rf8} 57. Rf5 {[%emt 0:0:0]} Re3 {[%emt 0:0:0]} 58. Rh5 {[%emt 0:0:0]} Re6 {[%emt 0:0:0]} 59. Rf5 {[%emt 0:0:0] [#] And now Kh5 would win.} Re3 {[%emt 0:0:0]} 60. Rh5 {[%emt 0:0:0]} Re6 {[%emt 0:0:0] Weighted Error Value: White=0.07 (flawless) /Black=0.07 (flawless)   Mistake:       	White=1     	Black=1      Inaccurate:     	White=6     	Black=6      OK:         	White=18    	Black=24     Best:        	White=4     	Black=6      Strong:       	White=2     	Black=1} 1/2-1/2

[Event "87th Tata Steel Masters 2025"]
[White "Sarana,Alexey"]
[Black "Mendonca,Leon Luke"]
[Site "Wijk aan Zee"]
[Round "13.7"]
[Annotator "RC"]
[Result "1/2-1/2"]
[Date "2025.02.02"]
[WhiteElo "2677"]
[BlackElo "2639"]
[PlyCount "94"]
[TimeControl "60"]

1. d4 {[%emt 0:0:2]} Nf6 {[%emt 0:0:12]} 2. c4 {[%emt 0:0:4]} e6 {[%emt 0:0:5]} 3. Nc3 {[%emt 0:0:3]} Bb4 {[%emt 0:0:19]} 4. e3 {[%emt 0:0:20]} O-O {[%emt 0:0:22]} 5. Bd3 {[%emt 0:0:7]} d5 {[%emt 0:0:25]} 6. a3 {[%emt 0:0:14]} Bxc3+ {[%emt 0:0:51]} 7. bxc3 {[%emt 0:0:6]} dxc4 {[%emt 0:0:54]} 8. Bxc4 {[%emt 0:0:5]} c5 {[%emt 0:0:5]} 9. Ne2 {[%emt 0:0:13]} Qc7 {[%emt 0:0:28]} 10. Qc2 {[%emt 0:0:25]} b6 {[%emt 0:6:39]} 11. f3 {[%emt 0:0:14]} Bb7 {[%emt 0:7:8]} 12. Bd2 {[%emt 0:0:54]} Nc6 {[%emt 0:23:57]} 13. Rc1 {[%emt 0:20:52]} Rac8 {[%emt 0:0:33]} 14. Qb2 {[%emt 0:4:3]} e5 {[%emt 0:15:17]} 15. e4 {[%emt 0:8:39]} exd4 {[%emt 0:9:9]} 16. cxd4 {[%emt 0:0:47]} cxd4 {[%emt 0:1:25]} 17. Bb5 {[%emt 0:8:39]} Qd7 {[%emt 0:13:17]} 18. O-O {[%emt 0:13:35]} Rfd8 {[%emt 0:0:5]} 19. Bg5 {[%emt 0:13:29]} a6 {[%emt 0:5:8]} 20. Bxc6 {[%emt 0:0:19]} Rxc6 {[%emt 0:0:14]} 21. Rxc6 {[%emt 0:1:48]} Bxc6 {[%emt 0:3:52]} 22. Rd1 {[%emt 0:5:28]} d3 {[%emt 0:2:38]} 23. Qxb6 {[%emt 0:2:35]} h6 {[%emt 0:10:40]} 24. Bxf6 {[%emt 0:10:4]} gxf6 {[%emt 0:0:1]} 25. Nf4 {[%emt 0:0:6]} d2 {[%emt 0:0:29]} 26. Nd5 {[%emt 0:0:42]} Bxd5 {[%emt 0:0:4]} 27. Rxd2 {[%emt 0:0:11]} Qe7 {[%emt 0:2:2]} 28. h3 {[%emt 0:11:23]} Rd7 {[%emt 0:3:42]} 29. Qb8+ {[%emt 0:3:38]} Kh7 {[%emt 0:0:48]} 30. Rxd5 {[%emt 0:0:5]} Rxd5 {[%emt 0:0:4]} 31. exd5 {[%emt 0:0:3]} Qc5+ {[%emt 0:0:7]} 32. Kh1 {[%emt 0:1:6]} Qxd5 {[%emt 0:0:6]} 33. Qb6 {[%emt 0:0:13]} Qe6 {[%emt 0:4:20]} 34. Qb4 {[%emt 0:2:29]} Qd5 {[%emt 0:0:50]} 35. a4 {[%emt 0:0:33]} a5 {[%emt 0:0:9]} 36. Qf4 {[%emt 0:0:13]} Qe5 {[%emt 0:1:9]} 37. Qc4 {[%emt 0:0:5]} Kg7 {[%emt 0:0:11]} 38. h4 {[%emt 0:0:5]} Qe1+ {[%emt 0:0:18]} 39. Kh2 {[%emt 0:0:2]} Qb4 {[%emt 0:0:24]} 40. Qg4+ {[%emt 0:0:59]} Qxg4 {[%emt 0:1:1]} 41. fxg4 {[%emt 0:50:2]} Kg6 {[%emt 0:1:6]} 42. Kg3 {[%emt 0:0:0]} f5 {[%emt 0:0:8]} 43. Kf4 {[%emt 0:0:0]} fxg4 {[%emt 0:1:57]} 44. Kxg4 {[%emt 0:0:0]} f5+ {[%emt 0:0:44]} 45. Kf4 {[%emt 0:0:0]} Kf6 {[%emt 0:0:6]} 46. g4 {[%emt 0:0:0]} fxg4 {[%emt 0:0:5]} 47. Kxg4 {[%emt 0:0:0]} Ke5 {[%emt 0:0:4]} 1/2-1/2